Workbook

Sheet Motorista
A1: Ministério da Integração e do Desenvolvimento Regional - MIDR
A2: Companhia de Desenvolvimento dos Vales do São Francisco e do Parnaíba
A3: 4ª Superintendência Regional da CODEVASF-4ª SR
A4: Gerência Regional de Administração e Tecnologia-4ª/GRA
A5: PLANILHA DE CUSTOS E FORMAÇÃO DE PREÇOS DE HORAS EXTRAS Motorista de Veículo
A7: PLANILHA DE CUSTOS E FORMAÇÃO DE PREÇOS
A8: Ano - Acordo, Convenção Coletiva ou Sentença Normativa em Dissídio | H8: SINDECESE - SERGIPE - 2024/2024
A9: Convenção/Acordo Coletivo de Trabalho - Nº do processo e Registro no MTE | H9: 19980.242973/2024-31 - MR008304/2024
A10: Vigência da Convenção | H10: 01 de janeiro/2024 a 31 de dezembro/2024
A11: Tipo de Serviço | H11: HORAS EXTRAS
A12: Unidade de Medida | H12: HORAS
A13: Nº de Meses de Execução Contratual | H13: 12
A14: Quantidade Estimada de Horas Extras Mensal (Por Funcionário) | H14: 10
A15: Total Estimado de Horas Extras Mensal | H15: 24
A16: TOTAL ESTIMADO DE HORAS EXTRAS ANUAL | H16: =H15*12 -> 288
A18: I - SALÁRIO ESTIMADO DO PROFISSIONAL
A19: Motorista com auxilio na carga e descarga | H19: 2482.05
A21: II - COMPOSIÇÃO DA REMUNERAÇÃO
A22: Salário Base | H22: =H19 -> 2482.05
A23: Outros | H23: 0
A24: Remuneração Total | H24: =SUM(H22:H23) -> 2482.05
A25: Valor da Hora Extra a 50% | H25: =(H24/220)*1.5 -> 16.92306818
A27: III - ENCARGOS SOCIAIS INCIDENTES SOBRE A REMUNERAÇÃO
A28: Grupo "A" | H28: % | I28: VALOR
A29: 01 - INSS | H29: 0.2 | I29: =H25*H29 -> 3.384613636
A30: 02 - Salário Educação | H30: 0.025 | I30: =H25*H30 -> 0.4230767045
A31: 03 - Seguro Acidente do Trabalho/SAT/INSS | H31: 0.03 | I31: =H25*H31 -> 0.5076920455
A32: 04 - SESI/SESC | H32: 0.015 | I32: =H25*H32 -> 0.2538460227
A33: 05 - SENAI/SENAC | H33: 0.01 | I33: =H25*H33 -> 0.1692306818
A34: 06 - INCRA | H34: 0.002 | I34: =H25*H34 -> 0.03384613636
A35: 07 - FGTS | H35: 0.08 | I35: =H25*H35 -> 1.353845455
A36: 08 - SEBRAE | H36: 0.006 | I36: =H25*H36 -> 0.1015384091
A37: Total do Grupo "A" | H37: =SUM(H29:H36) -> 0.368 | I37: =SUM(I29:I36) -> 6.227689091
A39: Grupo "B" | H39: % | I39: VALOR
A40: 09 - Férias | H40: 0.1203 | I40: =H25*H40 -> 2.035845102
A41: 10 - | I41: =H25*H41 -> 0
A42: 11 - Auxílio Doença | I42: =H25*H42 -> 0
A43: 12 - Licença Maternidade/Paternidade | I43: =H25*H43 -> 0
A44: 13 - Faltas Legais | I44: =H25*H44 -> 0
A45: 14 - Acidente do Trabalho | I45: =H25*H45 -> 0
A46: 15 - Aviso Prévio Trabalhado . (Artigo 7ª, XXI, CF/88, 477, 487 e ss da CLT) | I46: =H25*H46 -> 0
A47: 16 - Treinamento | I47: =H25*H47 -> 0
A48: 17 - 13º Salário | H48: 0.0833 | I48: =H25*H48 -> 1.40969158
A49: Total do Grupo "B" | H49: =SUM(H40:H48) -> 0.2036 | I49: =SUM(I40:I48) -> 3.445536682
A51: Grupo "C" | H51: % | I51: VALOR
A52: 18 - Aviso Prévio Indenizado | H52: 0.0354 | I52: =H25*H52 -> 0.5990766136
A53: 19 - FGTS sem aviso prévio | I53: =H25*H53 -> 0
A54: 20 - Reflexo no aviso prévio indenizado | I54: =H25*H54 -> 0
A55: 21 - Indenização (rescisão s/justa causa - multa 40% do FGTS) | I55: =H25*H55 -> 0
A56: 22 - Indenização (rescisão s/justa causa | H56: 0.032 | I56: =H25*H56 -> 0.5415381818
A57: 23 - Indenização adicional | H57: 0.018 | I57: =H25*H57 -> 0.3046152273
A58: Total do Grupo "C" | H58: =SUM(H52:H57) -> 0.0854 | I58: =SUM(I52:I57) -> 1.445230023
A60: Grupo "D" | H60: % | I60: VALOR
A61: 24 - Incidência cumulativa do Grupo A sobre o Grupo B | H61: 0.1078 | I61: =H25*H61 -> 1.82430675
A62: 25 - Incidência sobre o salário maternidade | I62: =H25*H62 -> 0
A63: Total do Grupo "D" | H63: =SUM(H61:H62) -> 0.1078 | I63: =SUM(I61:I62) -> 1.82430675
A65: TOTAL DO ENCARGOS SOCIAIS
A66: 26 - Total de encargos sociais | H66: =H37+H49+H58+H63 -> 0.7648 | I66: =H25*H66 -> 12.94276255
A68: VALOR DA HORA EXTRA (REMUNERAÇÃO + ENCARGOS SOCIAIS) | I68: =H25+I66 -> 29.86583073
A70: IV - INSUMOS
A71: IV.A - Benefícios Mensais e Diários | H71: VALOR
A72: 01 - Auxílio Alimentação - Cláusula 9º da CCT (R$ 14,28 * 22 dias) | I72: 0
A73: 02 - Desconto sobre Auxílio Alimentação - Cláusula 9ª da CCT (R$ 314,16 * 20%) | I73: 0
A74: 03 - Vale Transporte - Cláusula 11ª da CCT | I74: 0
A75: 04 - Desconto Legal sobre Vale Transporte - Cláusula 10ª da CCT | I75: 0
A76: 05 - Auxílio Saúde/Assistência Médica - Cláusula 12ª da CCT | I76: 0
A77: 06 - Plano de Assistência Odontológica Privada - Cláusula 13ª da CCT | I77: 0
A78: 07 - Auxílio Doença/Invalidez/Seguro de Vida - Cláusula 14ª da CCT | I78: 0
A79: Total do Subitem IV.A | I79: =SUM(I72:I78) -> 0
A81: IV.B - Insumos Diversos | H81: VALOR
A82: 08 - Material | I82: 0
A83: 09 - Equipamento de Proteção Individual - EPI (Norma Regulamentadora nº 06) - Cláusula 36ª da CCT | I83: 0
A84: 10 - Uniforme | I84: 0
A85: 11 - Depreciação e Manutenção de Equipamentos | I85: 0
A86: Total do Subitem IV.B | I86: =SUM(I82:I85) -> 0
A88: Valor Total dos Insumos (Subitem IV.A + Subitem IV.B) | I88: =I79+I86 -> 0
A90: VALOR DA HORA EXTRA + ENCARGOS SOCIAIS + INSUMOS | I90: =H25+I66+I88 -> 29.86583073
A92: V - LUCRO E DESPESAS INDIRETAS (LDI)
A93: Demais Componentes/Custos Indiretos | H93: % | I93: VALOR
A94: 01 - Despesas Administrativas/Operacionais | H94: 0.05 | I94: =I90*H94 -> 1.493291536
A95: 02 - Lucro | H95: 0.1 | I95: =I90*H95 -> 2.986583073
A96: Valor Total do Lucro e Despesas Indiretas (LDI) | H96: =SUM(H94:H95) -> 0.15 | I96: =SUM(I94:I95) -> 4.479874609
A98: VI - TRIBUTOS
A99: Tributos Diversos | H99: % | I99: VALOR
A100: ISSQN e ISS | H100: 0.05 | I100: =(I90+I96)*H100 -> 1.717285267
A101: PIS | H101: 0.0065 | I101: =(I90+I96)*H101 -> 0.2232470847
A102: COFINS | H102: 0.03 | I102: =(I90+I96)*H102 -> 1.03037116
A103: Outros | H103: 0 | I103: =(I90+I96)*H103 -> 0
A104: Valor Total dos Tributos (8,65/100 * II + III + IV + V) | H104: =SUM(H100:H103) -> 0.0865 | I104: =SUM(I100:I103) -> 2.970903512
A106: VII - VALOR TOTAL DAS HORAS EXTRAS | I106: VALOR
A107: VALOR TOTAL DA HORA EXTRA | I107: =I90+I96+I104 -> 37.31660885
A108: CUSTO MENSAL ESTIMADO COM HORAS EXTRAS | I108: =I107*H15 -> 895.5986124
A109: CUSTO ANUAL ESTIMADO COM HORAS EXTRAS | I109: =I108*12 -> 10747.18335
